bitfinex-derivatives/quotes_ETHF0:USTF0_20250816
["timestamp","ask_amount","ask_price","bid_price","bid_amount"]
[1755311701285,0.4019,4471.8,4471.7,1.4642]
[1755311701485,0.56883641,4471.8,4471.7,1.4642]
[1755311701994,0.4019,4471.8,4471.7,1.4642]
[1755311702191,1.2003353,4471.8,4471.7,1.4642]
[1755311702788,1.4391353,4471.8,4471.7,1.4642]
[1755311703385,1.0983353,4471.8,4471.7,1.4642]
[1755311704284,1.2003353,4471.8,4471.7,1.4642]
[1755311705086,1.2003353,4471.8,4470.9,0.5027]
[1755311705391,0.6114,4471.1,4471.0,1.02475]
[1755311705587,0.7712,4471.1,4471.0,1.02475]
[1755311705889,0.7712,4471.1,4471.0,1.4642]
[1755311706882,0.7712,4471.1,4471.0,0.8288]
[1755311707088,0.4019,4470.5,4470.4,0.839]
[1755311707388,0.7712,4470.5,4470.4,1.4642]
[1755311709494,0.2421,4470.5,4470.4,1.4642]
[1755311709685,0.3693,4470.8,4470.5,0.5027]
[1755311709889,0.6114,4470.8,4470.7,1.4642]
[1755311710088,0.9314,4470.8,4470.7,1.4642]
[1755311711694,0.7712,4470.8,4470.7,1.4642]
[1755311711896,0.2421,4470.8,4470.7,1.4642]
[1755311713099,0.7712,4470.8,4470.7,1.4642]
[1755311713593,0.501,4470.6,4470.5,1.52415707]
[1755311713797,1.2722,4470.5,4470.4,0.8288]
[1755311715198,0.9314,4470.5,4470.4,1.4642]
[1755311715594,1.0334,4470.5,4470.4,1.4642]
[1755311716093,1.2722,4470.5,4470.4,1.4642]
[1755311719300,0.6114,4470.5,4470.4,1.4642]
[1755311719503,0.4341,4470.5,4470.4,1.0805]
[1755311719698,0.804,4470.5,4470.4,1.4599]
[1755311719905,1.0654,4470.5,4470.4,1.4599]
[1755311720198,1.3259,4470.5,4470.4,1.0805]
[1755311720603,1.0654,4470.5,4470.4,1.4599]
[1755311721001,0.9633,4470.5,4470.4,1.4599]
[1755311721502,0.804,4470.5,4470.4,1.4599]
[1755311722304,0.9633,4470.5,4470.4,1.4599]
[1755311722505,1.0654,4470.5,4470.4,1.4599]
[1755311723703,1.52415707,4471.6,4469.8,20.738]
[1755311723704,0.804,4469.9,4469.8,1.4928]
[1755311723906,1.0654,4469.9,4469.8,1.4928]
[1755311724304,1.3259,4469.9,4469.8,1.4928]
[1755311725108,1.0654,4469.9,4469.8,1.4928]
[1755311725302,0.9633,4469.9,4469.8,1.4928]
[1755311726608,1.3259,4469.9,4469.8,1.4928]
[1755311727205,1.0654,4469.9,4469.8,1.4928]
[1755311727811,0.804,4469.9,4469.8,1.4928]
[1755311728010,0.6292,4469.9,4469.8,1.4928]
[1755311728612,0.804,4469.9,4469.8,1.4928]
[1755311730912,0.9633,4469.9,4469.8,1.4928]
[1755311731113,1.0654,4469.9,4469.8,1.4928]
[1755311731912,1.3259,4469.9,4469.8,1.4928]
[1755311732113,1.2238,4469.9,4469.8,0.8541]
[1755311732310,0.3341,4469.6,4468.8,3.2078]
[1755311732512,0.2605,4468.9,4467.8,3.2078]
[1755311732714,1.52415707,4470.9,4467.8,3.2078]
[1755311732715,0.8539,4467.9,4467.8,3.8057]
[1755311733014,0.891,4467.8,4466.8,3.2078]
[1755311733213,0.5934,4467.0,4466.8,2.64227461]
[1755311733410,0.5934,4467.0,4466.9,21.2422]
[1755311733714,3.2078,4467.5,4466.9,21.2422]
[1755311733911,0.2605,4467.4,4466.9,0.3386]
[1755311734116,1.4844,4466.9,4466.1,0.10075792]
[1755311734419,1.4844,4466.2,4466.1,0.79845792]
[1755311734714,1.4844,4466.2,4466.1,0.10075792]
[1755311734916,3.00855707,4466.2,4466.1,0.10075792]
[1755311735118,2.11755707,4466.2,4463.8,1.52415707]
[1755311735318,4.6922,4464.8,4464.7,0.8653]
[1755311735710,4.6922,4464.8,4463.5,3.4621]
[1755311735912,1.52415707,4465.1,4464.2,0.8653]
[1755311735913,4.6922,4464.3,4464.2,0.8653]
[1755311736117,4.6922,4464.3,4464.2,0.6977]
[1755311737207,4.6922,4464.3,4464.2,0.8653]
[1755311738312,4.6922,4464.3,4463.8,20.74]
[1755311738511,3.2078,4464.3,4464.2,0.5062]
[1755311738706,3.8012,4464.8,4464.7,0.3386]
[1755311739012,3.2078,4465.7,4464.8,0.3591]
[1755311739212,0.891,4465.6,4465.0,0.2543]
[1755311739407,0.2605,4465.5,4465.0,0.2543]
[1755311739606,1.4844,4465.5,4465.4,0.5062]
[1755311739813,1.4844,4465.5,4465.4,0.8653]
[1755311740015,0.6946,4465.5,4465.4,1.1265]
[1755311740213,3.2078,4465.7,4465.6,1.0217]
[1755311740409,3.2078,4465.7,4465.6,1.1265]
[1755311740810,4.6922,4465.7,4465.6,0.6977]
[1755311741115,1.4844,4465.7,4465.6,0.1754]
[1755311741312,1.4844,4465.7,4465.4,20.746]
[1755311741516,0.891,4465.6,4465.4,20.746]
[1755311741818,0.2605,4465.5,4465.4,20.746]
[1755311742316,1.4844,4465.5,4465.4,0.6979]
[1755311742717,1.4844,4465.5,4465.4,0.8659]
[1755311743213,1.4844,4465.5,4464.7,0.3593]
[1755311743214,0.8539,4465.5,4464.7,0.3593]
[1755311743520,0.5934,4465.3,4465.2,0.3386]
[1755311743816,3.2078,4465.8,4465.6,0.44749]
[1755311744121,3.8012,4466.3,4466.2,0.1632]
[1755311744418,4.1711,4466.3,4466.2,0.3386]
[1755311744718,4.6922,4466.3,4466.2,0.3386]
[1755311744919,4.6922,4466.3,4466.2,0.5929]
[1755311745118,4.6922,4466.3,4466.2,0.3386]
[1755311745617,3.8012,4466.3,4466.2,0.3386]
[1755311746320,4.6922,4466.3,4466.2,0.3386]
[1755311747519,4.2569,4466.3,4466.2,0.1754]
[1755311747820,4.6922,4466.3,4466.2,0.1754]
[1755311748014,0.2606,4466.2,4465.8,0.44748]
[1755311748221,1.0491,4465.9,4465.8,1.15018]
[1755311749017,0.4186,4465.9,4465.8,0.7027]
[1755311749616,0.4353,4466.3,4466.2,0.6932]
[1755311749911,0.4353,4466.3,4466.2,21.4432]
[1755311750113,1.4644,4466.3,4465.8,0.2451]
[1755311750422,1.0291,4465.7,4465.6,24.9122]
[1755311750610,1.0291,4465.7,4465.6,21.7044]
[1755311751017,1.0291,4465.7,4465.6,21.3538]
[1755311751222,1.0291,4465.7,4465.6,20.9239]
[1755311751419,1.0291,4465.7,4465.6,0.1739]
[1755311751727,1.0291,4465.2,4465.1,3.7323]
[1755311752022,1.0291,4465.2,4464.9,20.75]
[1755311752318,3.2078,4466.0,4465.1,0.2451]
[1755311752529,3.6285,4466.0,4465.9,0.5877]
[1755311752825,3.6285,4466.0,4465.9,0.6932]
[1755311753016,0.6084,4465.9,4464.5,3.2078]
[1755311753222,0.2536,4463.7,4463.6,0.6604]
[1755311753418,0.2536,4463.7,4463.6,1.0443]
[1755311753621,0.6216,4463.7,4463.6,0.6604]
[1755311753819,0.6216,4463.7,4463.6,0.2414]
[1755311754021,0.368,4463.6,4463.0,0.2451]
[1755311754324,0.368,4462.9,4462.7,0.8029]
[1755311754515,0.2536,4462.9,4462.8,0.6604]
[1755311754918,0.2536,4462.9,4462.8,1.0443]
[1755311755120,0.6216,4462.9,4462.8,1.0443]
[1755311757323,3.2078,4463.2,4461.7,32.235]
[1755311757324,0.2536,4462.6,4461.7,32.235]
[1755311757527,3.8294,4462.3,4462.2,1.0443]
[1755311759526,4.47596721,4462.3,4462.2,1.0443]
[1755311759926,4.10796721,4462.3,4462.2,1.0443]
[1755311760322,4.10796721,4462.3,4462.2,21.8253]
[1755311760523,4.47596721,4462.3,4462.2,21.8253]
[1755311760724,3.85436721,4462.3,4462.2,21.8253]
[1755311760923,0.64656721,4462.3,4462.2,21.8253]
[1755311761423,0.64656721,4462.3,4462.2,1.0443]
[1755311761631,4.47596721,4462.3,4462.1,20.774]
[1755311761831,0.90016721,4462.2,4462.1,21.1893]
[1755311762039,1.26816721,4462.2,4461.4,0.44792]
[1755311762331,1.26816721,4462.1,4462.0,0.4153]
[1755311762534,1.26816721,4462.1,4462.0,0.6604]
[1755311762927,1.26816721,4462.1,4462.0,1.0443]
[1755311763432,1.13659394,4462.1,4461.8,20.771]
[1755311763630,0.6216,4461.9,4461.8,0.2451]
[1755311763833,1.26816721,4461.9,4461.8,0.2451]
[1755311764134,1.67072983,4461.9,4461.8,0.2451]
[1755311764325,1.50458159,4461.9,4461.8,0.2451]
[1755311764733,1.67071199,4461.9,4461.8,0.6604]
[1755311765031,1.13658159,4461.9,4461.1,0.2451]
[1755311765234,3.8294,4461.4,4461.3,1.0443]
[1755311765532,4.47596721,4461.4,4461.3,1.0443]
[1755311766328,3.85436721,4461.4,4461.3,1.0443]
[1755311766635,0.64656721,4461.4,4461.3,1.0443]
[1755311767137,4.47596721,4461.4,4460.4,3.4529]
[1755311767325,3.8294,4460.9,4460.8,1.0443]
[1755311767526,4.47596721,4460.9,4460.8,1.0443]
[1755311772338,4.47596721,4460.9,4460.0,0.629]
[1755311772538,1.25178826,4460.8,4460.7,0.4153]
[1755311772839,1.25178826,4460.8,4460.7,0.6604]
[1755311773236,1.25178826,4460.8,4460.7,0.419]
[1755311773432,1.25178826,4460.8,4460.1,0.44805]
[1755311773634,0.63018826,4460.7,4460.6,1.10841]
[1755311773839,0.63018826,4460.7,4460.6,1.49231]
[1755311774234,0.63018826,4460.7,4460.6,1.0443]
[1755311775043,0.88378826,4460.7,4460.6,1.0443]
[1755311775242,1.25178826,4460.7,4460.6,1.0443]
[1755311775638,1.25178826,4460.7,4459.6,1.36536]
[1755311775839,0.2536,4460.2,4460.1,1.24725]
[1755311776137,0.6216,4460.6,4460.5,0.1739]
[1755311776340,0.62951707,4460.6,4460.5,21.8163]
[1755311776541,3.4614,4460.9,4460.8,0.4153]
[1755311776842,4.4592415,4460.9,4460.8,1.0443]
[1755311777345,4.4592415,4460.9,4460.8,0.6604]
[1755311777740,3.8376415,4460.9,4460.8,0.6604]
[1755311777939,3.8376415,4460.9,4460.8,1.0443]
[1755311778134,3.8376415,4460.9,4460.8,0.419]
[1755311778544,4.4819415,4460.9,4460.8,1.0297]
[1755311779235,3.8376415,4460.9,4460.8,1.0297]
[1755311779439,3.8376415,4460.9,4460.8,21.8027]
[1755311779640,3.8376415,4460.9,4460.8,1.0297]
[1755311779848,4.0790415,4460.9,4460.8,1.0297]
[1755311780042,4.4697415,4460.9,4460.8,1.0297]
[1755311780244,4.2403477,4460.9,4460.8,1.0297]
[1755311780439,0.86634465,4460.9,4460.8,1.0297]
[1755311780635,0.6298415,4460.9,4460.8,1.0297]
[1755311781242,3.2078,4461.4,4461.3,0.408]
[1755311781544,3.2078,4461.4,4461.3,1.47533]
[1755311781736,3.61557724,4461.4,4460.4,4.57796]
[1755311781942,0.8055,4460.6,4460.5,21.4321]
[1755311782142,1.2317567,4460.6,4460.5,21.4321]
[1755311782543,1.2317567,4460.6,4460.5,0.6121]
[1755311782745,1.2317567,4460.6,4460.5,0.8622]
[1755311782945,0.9720567,4460.6,4460.5,1.0274]
[1755311783144,0.7986567,4460.6,4460.5,1.0274]
[1755311783344,1.2317567,4460.6,4460.5,1.0274]
[1755311783749,0.7986567,4460.6,4460.5,1.0274]
[1755311783949,1.2317567,4460.6,4460.5,21.8014]
[1755311784351,0.1665567,4460.6,4460.5,22.24942]
[1755311784651,0.8055,4461.2,4461.1,0.2501]
[1755311784955,1.0652,4460.4,4460.3,0.6581]
[1755311785249,1.23219257,4460.4,4460.3,21.8014]
[1755311785651,0.79909257,4460.4,4460.3,21.8014]
[1755311785849,0.16699257,4460.4,4460.3,21.8014]
[1755311786046,3.4492,4460.7,4460.6,0.408]
[1755311786253,4.44015757,4460.7,4460.6,0.6581]
[1755311786758,0.16715757,4460.7,4460.6,1.47541]
[1755311786955,0.58197077,4461.7,4461.6,0.1652]
[1755311787150,0.1734,4461.5,4461.4,0.2501]
[1755311787345,1.45009262,4461.5,4461.4,0.2501]
[1755311787551,0.79969262,4461.5,4461.3,20.774]
[1755311787751,1.45009262,4461.4,4461.3,20.774]
[1755311788155,1.23237019,4461.4,4461.3,20.774]
[1755311788360,1.23250759,4461.4,4461.3,20.774]
[1755311788559,1.23250759,4461.4,4461.3,21.1893]
[1755311788959,1.23250759,4461.4,4461.3,20.774]
[1755311789350,0.58210759,4461.4,4461.1,0.3693]
[1755311789552,1.23250759,4461.3,4461.2,20.774]
[1755311789754,4.44030759,4461.3,4461.2,20.774]
[1755311790256,1.23250759,4461.3,4461.2,20.774]
[1755311790455,0.16730759,4461.3,4461.2,26.39639811]
[1755311790657,0.16730759,4461.7,4461.6,0.1652]
[1755311790859,0.97289945,4461.7,4461.6,1.0274]
[1755311791057,1.23259945,4461.7,4461.6,1.0274]
[1755311791257,1.23260131,4461.7,4461.6,21.8184]
[1755311791959,1.23260131,4461.7,4461.6,1.0274]
[1755311792161,1.23260131,4461.7,4461.6,21.8174]
[1755311792357,0.16740131,4461.7,4461.6,21.8174]
[1755311792662,3.2078,4461.8,4461.7,0.85589]
[1755311792863,3.2078,4461.8,4461.7,1.47529]
[1755311793155,3.2078,4462.5,4462.1,0.44785]
[1755311793358,3.4492,4462.5,4462.4,1.0274]
[1755311793561,0.16756741,4462.5,4462.4,21.8134]
[1755311793751,3.2078,4463.0,4462.9,1.0274]
[1755311794156,3.37538282,4463.0,4462.9,1.0274]
[1755311794460,3.2078,4463.0,4462.9,1.0274]
[1755311794658,3.2078,4463.0,4462.9,0.6581]
[1755311794960,3.4492,4463.0,4462.9,1.0274]
[1755311795163,3.8399,4463.0,4462.9,1.0274]
[1755311795558,3.4492,4463.0,4462.9,1.0274]
[1755311795960,0.8238,4463.3,4463.2,0.1652]
[1755311796163,1.23251555,4463.3,4463.2,0.4153]
[1755311796361,3.2078,4463.5,4463.4,0.408]
[1755311796560,3.2078,4463.5,4463.4,0.4153]
[1755311796561,0.4148,4463.5,4463.4,0.4153]
[1755311796753,1.0652,4463.5,4463.3,20.836]
[1755311796954,1.0652,4463.4,4463.3,20.836]
[1755311797160,0.2414,4462.6,4462.5,0.7773]
[1755311797358,0.4148,4462.6,4462.5,21.8674]
[1755311797560,0.8055,4462.6,4462.5,21.8674]
[1755311797763,0.2414,4462.6,4462.5,21.8674]
[1755311797965,3.2078,4463.1,4462.9,1.0274]
[1755311798262,3.2078,4463.1,4463.0,1.0274]
[1755311799865,4.273,4463.1,4463.0,21.2633]
[1755311801060,3.2078,4464.1,4464.0,0.44766]
[1755311801257,3.2078,4464.1,4464.0,0.408]
[1755311801460,4.0133,4464.1,4464.0,0.4153]
[1755311801657,4.273,4464.1,4464.0,20.86]
[1755311801859,0.2597,4464.0,4463.6,0.4477]
[1755311802065,1.0652,4464.0,4463.9,21.2743]
[1755311803569,1.0652,4464.0,4463.9,0.4153]
[1755311803768,3.2078,4464.6,4464.5,0.1652]
[1755311803971,3.2078,4464.6,4464.5,0.408]
[1755311804270,3.4492,4464.6,4464.5,1.0274]
[1755311804969,3.2078,4464.6,4464.5,1.0274]
[1755311805767,3.4492,4464.6,4464.5,1.47501]
[1755311805969,3.2078,4464.6,4464.5,1.47501]
[1755311806169,3.2078,4464.6,4464.5,1.0274]
[1755311808267,3.2078,4465.1,4464.9,0.44757]
[1755311808473,3.4586,4465.1,4465.0,0.5494]
[1755311808670,3.8265,4465.1,4465.0,21.2524]
[1755311810574,3.9968,4465.1,4465.0,21.2524]
[1755311811270,3.2078,4465.6,4465.4,0.44752]
[1755311811470,0.1703,4465.2,4465.1,20.819]
[1755311811670,0.4147,4465.0,4464.9,0.2446]
[1755311811866,1.0434,4465.0,4464.9,0.86297]
[1755311812070,0.8346,4465.0,4464.4,0.82622]
[1755311812266,0.4147,4464.7,4464.6,0.7205]
[1755311812467,0.4147,4464.7,4464.6,0.9349]
[1755311812675,1.0434,4464.7,4464.6,0.9349]
[1755311813074,1.4633,4464.7,4464.6,20.85]
[1755311813976,1.4633,4464.6,4464.5,0.4154]
[1755311814882,0.585,4464.6,4464.3,0.44762]
[1755311815070,1.4633,4464.5,4464.4,21.2594]
[1755311815275,1.4633,4464.5,4464.4,0.4154]
[1755311815576,1.4633,4464.5,4463.8,4.73772652]
[1755311815577,1.4633,4464.1,4464.0,0.4154]
[1755311816377,0.585,4463.6,4463.5,0.3419]
[1755311816570,1.4633,4463.6,4463.5,21.4275]
[1755311816776,1.4633,4463.6,4463.0,0.3786]
[1755311816777,0.6287,4463.5,4463.0,0.3786]
[1755311817078,0.585,4463.5,4463.4,0.5865]
[1755311817380,0.585,4463.5,4463.4,0.9349]
[1755311817581,0.6755,4463.5,4463.4,0.9349]
[1755311817781,0.6755,4463.5,4463.4,1.1756]
[1755311818376,1.0434,4463.5,4463.4,1.1756]
[1755311818577,1.0434,4463.5,4463.4,0.9349]
[1755311818777,0.6755,4463.5,4463.4,0.9349]
[1755311818978,0.6755,4463.5,4463.4,1.1756]
[1755311819878,0.4147,4463.6,4463.5,0.7205]
[1755311820075,3.2078,4464.6,4463.9,0.5563]
[1755311820274,1.0434,4464.5,4464.4,0.1708]
[1755311820482,0.585,4464.5,4464.1,0.2446]
[1755311820677,1.0954,4464.2,4464.0,20.832]
[1755311820983,1.4633,4464.1,4464.0,0.4154]
[1755311821580,0.585,4463.9,4463.8,21.72808]
[1755311821877,3.4686,4464.1,4464.0,0.61876]
[1755311822072,1.0434,4464.1,4464.0,1.24856]
[1755311822276,3.4574,4464.6,4464.0,0.3786]
[1755311822277,0.6287,4464.5,4464.0,0.3786]
[1755311822477,3.2078,4464.6,4464.4,0.78952]
[1755311822680,4.4215,4465.1,4465.0,0.3419]
[1755311822879,4.4215,4465.1,4465.0,0.5563]
[1755311823079,4.4215,4465.1,4465.0,0.9349]
[1755311824086,3.4686,4465.7,4465.6,0.9349]
[1755311824288,3.2078,4465.7,4465.6,2.70552652]
[1755311824476,3.4686,4465.7,4465.6,2.70552652]
[1755311824681,3.4686,4465.7,4465.6,1.1756]
[1755311824885,3.2078,4465.7,4465.6,1.1756]
[1755311825580,3.8833,4465.7,4465.6,1.1756]
[1755311825886,3.8833,4465.7,4465.6,0.9349]
[1755311826081,4.2512,4465.7,4465.6,0.9349]
[1755311826585,3.8833,4465.7,4465.6,21.8789]
[1755311826788,4.2512,4465.7,4465.6,21.8789]
[1755311828688,4.4215,4465.7,4465.6,21.8789]
[1755311829189,4.6711,4465.7,4465.6,21.8789]
[1755311830087,0.2608,4465.6,4465.3,0.44753]
[1755311830285,0.585,4465.2,4465.1,0.1708]
[1755311830486,1.4633,4465.2,4465.1,21.0938]
[1755311830689,0.585,4464.5,4464.4,0.1708]
[1755311830884,0.585,4464.0,4463.9,0.7205]
[1755311831082,0.8346,4464.0,4463.9,21.6515]
[1755311831286,1.4633,4464.0,4463.9,0.4154]
[1755311831486,1.4633,4464.0,4463.9,21.3514]
[1755311831687,1.2137,4464.0,4463.9,21.3514]
[1755311831882,0.3679,4464.3,4463.9,22.55926]
[1755311832088,0.2608,4464.2,4464.1,0.5563]
[1755311832386,1.0434,4464.2,4464.1,1.1756]
[1755311832686,1.0434,4464.2,4464.1,0.9349]
[1755311834493,1.2137,4464.2,4464.1,0.9349]
[1755311834691,1.4633,4464.2,4464.1,0.4154]
[1755311836785,0.8346,4464.2,4463.3,3.2078]
[1755311836988,0.5382,4464.4,4464.3,0.1708]
[1755311837292,1.2025,4464.4,4464.3,21.0768]
[1755311837592,1.4633,4464.4,4464.3,21.3214]
[1755311838094,1.4633,4464.4,4464.3,21.4925]
[1755311838289,1.4633,4464.4,4464.3,21.6265]
[1755311839394,1.4633,4464.4,4464.3,20.906]
[1755311839588,1.4633,4464.4,4464.3,21.1526]
[1755311839790,1.2137,4464.4,4464.3,21.8466]
[1755311840393,3.4578,4464.6,4464.5,0.3865]
[1755311840586,0.25,4464.6,4464.5,0.9406]
[1755311840789,0.2532,4464.9,4464.8,0.4615]
[1755311840990,0.2532,4464.9,4464.8,21.3248]
[1755311840991,1.0279,4464.9,4464.8,21.3248]
[1755311841293,1.4471,4464.9,4464.8,21.0782]
[1755311841490,1.4471,4464.9,4464.8,21.3248]
[1755311841894,1.4471,4464.9,4464.8,21.4964]
[1755311842497,0.5902,4464.4,4464.3,0.2466]
[1755311842790,1.1939,4463.9,4463.8,0.69428]
[1755311842996,1.4471,4463.9,4463.8,21.93808]
[1755311843191,1.4471,4463.9,4463.8,22.07238]
[1755311843893,1.4471,4463.9,4463.8,0.5914]
[1755311844095,1.4471,4463.9,4463.8,21.4874]
[1755311846589,1.4471,4463.9,4463.8,21.4734]
[1755311847699,1.4471,4463.9,4463.8,21.6077]
[1755311847999,1.4471,4463.9,4463.8,21.8226]
[1755311848193,3.2078,4464.5,4463.8,21.8226]
[1755311848398,1.0391,4464.4,4464.3,0.9406]
[1755311848700,0.25,4464.6,4464.5,0.5597]
[1755311848894,0.25,4464.6,4464.5,1.188]
[1755311848895,0.4192,4464.6,4464.5,1.188]
[1755311849095,0.6724,4464.6,4464.5,1.188]
[1755311849695,0.6724,4464.6,4464.5,0.9406]
[1755311849998,1.2069,4464.6,4464.5,20.873]
[1755311850296,1.2069,4464.6,4464.5,21.2928]
[1755311850496,1.4471,4464.6,4464.5,21.0462]
[1755311850892,1.4471,4464.6,4464.5,21.5987]
[1755311851092,1.2069,4464.6,4464.5,21.8136]
[1755311851691,1.4471,4464.6,4464.5,21.4644]
[1755311852299,1.2069,4464.6,4464.5,21.4644]
[1755311855398,1.4471,4464.6,4464.5,21.4644]
[1755311855598,0.8272,4464.6,4464.5,21.4644]
[1755311855897,0.4192,4464.9,4464.8,0.3448]
[1755311856197,3.4578,4465.0,4464.9,0.8388]
[1755311856394,3.4578,4465.0,4464.9,21.6758]
[1755311856796,3.2078,4465.0,4464.9,21.6758]
[1755311857597,3.4578,4465.0,4464.9,21.6758]
[1755311858003,3.627,4465.0,4464.9,21.6758]
[1755311861597,3.627,4465.0,4464.4,3.2078]
[1755311861806,3.627,4465.0,4464.0,2.79793274]
[1755311861807,0.8272,4464.3,4464.2,0.5914]
[1755311862105,0.8272,4464.3,4464.2,0.1732]
[1755311862297,0.8272,4464.3,4464.2,20.822]
[1755311862697,0.1692,4463.9,4463.8,0.4182]
[1755311862906,0.8272,4463.9,4463.8,21.4134]
[1755311863604,0.8272,4463.9,4463.8,21.2418]
[1755311864003,0.8272,4463.9,4463.8,0.4198]
[1755311864301,0.8272,4463.9,4463.8,21.2398]
[1755311865006,0.8272,4463.9,4463.8,20.82]
[1755311865306,0.8272,4463.9,4463.8,21.2398]
[1755311865506,0.8272,4463.9,4463.8,21.2328]
[1755311866405,0.8272,4463.9,4463.8,21.4044]
[1755311866706,0.8272,4463.9,4463.8,21.3984]
[1755311867008,0.8272,4463.9,4463.8,0.5914]
[1755311867210,0.8272,4463.9,4463.8,21.3944]
[1755311867909,0.8272,4463.9,4463.8,0.5914]
[1755311868205,0.8272,4463.9,4463.8,21.3904]
[1755311869199,0.587,4463.9,4463.8,21.3904]
[1755311869411,3.2078,4464.5,4463.8,0.5914]
[1755311869613,0.5832,4463.9,4463.8,0.5991]
[1755311869808,0.8395,4463.9,4463.8,21.3911]
[1755311870310,0.8395,4463.9,4463.8,0.5991]
[1755311870506,0.8395,4463.9,4463.8,21.3861]
[1755311871811,0.8395,4463.9,4463.8,0.5991]
[1755311872007,0.8395,4463.9,4463.8,21.3871]
[1755311872409,0.5832,4463.9,4463.8,21.3871]
[1755311872614,0.5832,4463.9,4463.8,0.5991]
[1755311872808,0.5832,4463.9,4463.8,21.3811]
[1755311873506,0.4216,4463.9,4463.8,21.6367]
[1755311873706,0.4216,4463.9,4463.8,0.8547]
[1755311874014,0.4216,4463.9,4463.8,21.6377]
[1755311876306,0.2548,4464.4,4463.9,0.44767]
[1755311876506,0.2548,4464.4,4464.3,0.5753]
[1755311876709,0.4216,4464.4,4464.3,21.3583]
[1755311876910,0.1668,4464.9,4464.8,0.321]
[1755311877112,0.1668,4464.9,4464.8,2.10588844]
[1755311877613,0.4216,4464.9,4464.8,2.36018844]
[1755311878015,3.2078,4465.0,4464.8,2.80776844]
[1755311878215,0.4216,4465.4,4465.3,0.321]
[1755311878415,0.4216,4465.4,4465.3,21.3573]
[1755311878616,0.5832,4465.4,4465.3,21.3573]
[1755311878817,0.8395,4465.4,4465.3,21.3573]
[1755311879009,0.2548,4465.4,4465.3,21.3573]
[1755311879214,0.4216,4465.4,4465.3,21.6129]
[1755311880106,3.2078,4465.6,4465.3,21.3573]
[1755311880309,0.1668,4465.7,4465.6,0.2543]
[1755311880518,0.8395,4465.7,4465.6,0.5753]
[1755311880908,0.3284,4465.1,4465.0,1.02286]
[1755311881111,0.2548,4465.1,4465.0,22.05946]
[1755311881314,0.4216,4465.4,4465.3,0.76853]
[1755311881517,0.4216,4465.4,4465.3,1.02283]
[1755311881712,0.4216,4465.4,4465.3,0.5753]
[1755311883207,3.4626,4465.6,4465.4,0.2543]
[1755311883410,3.4626,4465.6,4465.5,0.8309]
[1755311883612,3.6294,4465.6,4465.5,0.8309]
[1755311884318,3.6294,4465.6,4465.5,0.5753]
[1755311884612,3.791,4465.6,4465.5,0.1601]
[1755311884815,0.5832,4465.2,4465.1,0.4144]
[1755311885019,0.8395,4465.2,4465.1,21.1934]
[1755311885318,0.8395,4465.2,4465.1,21.3543]
[1755311886216,0.8395,4465.2,4465.1,21.3533]
[1755311887018,0.8395,4465.2,4465.1,0.4144]
[1755311887218,0.8395,4465.2,4465.1,21.1924]
[1755311888419,0.8395,4465.2,4465.1,21.3533]
[1755311890122,0.2548,4465.2,4465.1,21.3533]
[1755311890324,0.4216,4465.2,4465.1,21.6089]
[1755311894224,0.5832,4465.2,4465.1,21.3533]
[1755311895427,0.8395,4465.2,4465.1,21.3533]
[1755311896825,0.5832,4465.2,4465.1,21.3533]
[1755311897026,0.2548,4465.6,4465.5,0.5753]
[1755311897324,0.4216,4465.6,4465.5,21.6059]
[1755311897825,0.8395,4465.6,4465.5,21.3503]
[1755311898226,0.5832,4465.6,4465.5,21.3503]
[1755311898424,0.5832,4465.6,4465.5,21.5968]
[1755311898621,0.5832,4465.6,4465.5,21.5958]
[1755311898822,0.4216,4465.6,4465.5,21.5958]
[1755311899425,0.5953,4465.6,4465.5,21.3493]
[1755311901326,3.2078,4466.1,4465.5,21.3493]
[1755311901628,3.2078,4466.1,4466.0,1.26897]
[1755311901829,3.2078,4466.1,4466.0,22.04097]
[1755311902128,0.4097,4466.6,4466.5,0.335]
[1755311902327,0.829,4466.6,4466.5,21.347]
[1755311902525,0.5834,4466.6,4466.5,21.347]
[1755311902830,0.5834,4466.6,4466.5,21.5935]
[1755311903031,3.2078,4466.8,4466.7,0.335]
[1755311903232,3.6175,4466.8,4466.7,2.10428844]
[1755311903730,3.2078,4466.8,4466.7,2.35078844]
[1755311903931,3.6175,4466.8,4466.7,2.35078844]
[1755311904133,0.345,4466.3,4466.2,0.575]
[1755311904328,0.829,4466.3,4466.2,0.575]
[1755311904530,0.829,4466.3,4466.2,21.345]
[1755311904828,0.5834,4466.3,4466.2,21.345]
[1755311905131,0.4097,4466.3,4466.2,21.5915]
[1755311905730,0.5834,4466.3,4466.2,21.345]
[1755311905929,0.829,4466.3,4466.2,21.345]
[1755311906330,0.829,4466.3,4466.2,21.344]
[1755311907433,0.829,4466.3,4466.2,21.343]
[1755311907636,0.4097,4466.3,4466.2,21.343]
[1755311907836,3.4534,4466.8,4466.2,21.008]
[1755311908036,3.4534,4466.8,4466.7,0.575]
[1755311908037,3.7984,4466.8,4466.7,0.575]
[1755311908236,3.7912,4466.8,4466.7,21.343]
[1755311908439,4.0368,4466.8,4466.7,21.343]
[1755311909239,3.7912,4466.8,4466.7,21.343]
[1755311909835,4.0368,4466.8,4466.7,21.1703]
[1755311910032,4.0368,4466.8,4466.7,20.9303]
[1755311910342,4.0368,4466.8,4466.7,20.768]
[1755311911745,4.0368,4466.8,4466.7,21.1703]